[Event "Late-Titled-Tuesday-Blitz-February-06-2024"]
[Site "Chess.com"]
[Date "2024.02.06"]
[Round "4"]
[White "HaryKane"]
[Black "FredddieCroderg"]
[Result "1-0"]
[WhiteElo "2563"]
[BlackElo "2386"]
[TimeControl "180+1"]
[EndTime "14:39:12 PST"]
[Termination "HaryKane won on time"]

1. d4 {[%clk 0:03:00.9]} 1... d5 {[%clk 0:02:34.2]} 2. e3 {[%clk 0:03:00.5]}
2... e6 {[%clk 0:02:32.6]} 3. f4 {[%clk 0:02:58.6]} 3... Nf6 {[%clk 0:02:31.6]}
4. Nf3 {[%clk 0:02:58.5]} 4... c5 {[%clk 0:02:30.9]} 5. c3 {[%clk 0:02:58]} 5...
Bd6 {[%clk 0:02:29.4]} 6. Bd3 {[%clk 0:02:56.8]} 6... O-O {[%clk 0:02:28.6]} 7.
O-O {[%clk 0:02:56.6]} 7... Nc6 {[%clk 0:01:55.4]} 8. Ne5 {[%clk 0:02:55.4]}
8... Ne7 {[%clk 0:01:54.9]} 9. Nd2 {[%clk 0:02:52.8]} 9... b6 {[%clk 0:01:54.1]}
10. Rf3 {[%clk 0:02:51.3]} 10... Bb7 {[%clk 0:01:53.9]} 11. Rh3 {[%clk
0:02:48.7]} 11... Ne4 {[%clk 0:01:52.7]} 12. Qh5 {[%clk 0:02:36.6]} 12... h6
{[%clk 0:01:52]} 13. Bxe4 {[%clk 0:02:30.5]} 13... dxe4 {[%clk 0:01:51]} 14. Rg3
{[%clk 0:02:30.9]} 14... Nf5 {[%clk 0:01:43.3]} 15. Rh3 {[%clk 0:02:25.5]} 15...
Bxe5 {[%clk 0:01:38.9]} 16. fxe5 {[%clk 0:02:24.8]} 16... cxd4 {[%clk
0:01:38.9]} 17. exd4 {[%clk 0:02:24]} 17... Nxd4 {[%clk 0:01:29.6]} 18. cxd4
{[%clk 0:02:19.7]} 18... Qxd4+ {[%clk 0:01:29]} 19. Kh1 {[%clk 0:02:18.7]} 19...
e3 {[%clk 0:01:28.7]} 20. Nb3 {[%clk 0:02:04]} 20... Qe4 {[%clk 0:01:14.1]} 21.
Qe2 {[%clk 0:01:52.9]} 21... Rad8 {[%clk 0:00:54.1]} 22. Bxe3 {[%clk 0:01:45.3]}
22... Qxe5 {[%clk 0:00:50.5]} 23. Qf2 {[%clk 0:01:37.3]} 23... Rd3 {[%clk
0:00:43.6]} 24. Bd4 {[%clk 0:01:29.4]} 24... Qe4 {[%clk 0:00:26.3]} 25. Rxd3
{[%clk 0:01:12.8]} 25... Qxd3 {[%clk 0:00:25.5]} 26. Re1 {[%clk 0:01:07.4]}
26... Rd8 {[%clk 0:00:22]} 27. Qg3 {[%clk 0:00:54.9]} 27... Qxg3 {[%clk
0:00:20.7]} 28. hxg3 {[%clk 0:00:54.9]} 28... Bd5 {[%clk 0:00:20.9]} 29. Bc3
{[%clk 0:00:52.1]} 29... a5 {[%clk 0:00:19]} 30. Nc1 {[%clk 0:00:45.4]} 30...
Bc4 {[%clk 0:00:14.7]} 31. b3 {[%clk 0:00:42.1]} 31... Ba6 {[%clk 0:00:13.5]}
32. Kg1 {[%clk 0:00:39.3]} 32... Rc8 {[%clk 0:00:12]} 33. Re3 {[%clk 0:00:36]}
33... b5 {[%clk 0:00:11]} 34. Ne2 {[%clk 0:00:18.9]} 34... b4 {[%clk 0:00:10.6]}
35. Be5 {[%clk 0:00:17.5]} 35... Rc2 {[%clk 0:00:11]} 36. Nd4 {[%clk 0:00:17.8]}
36... Rxa2 {[%clk 0:00:10]} 37. Nc6 {[%clk 0:00:17]} 37... Bb5 {[%clk
0:00:07.9]} 38. Ne7+ {[%clk 0:00:14.9]} 38... Kf8 {[%clk 0:00:08]} 39. Bd6
{[%clk 0:00:15.5]} 39... Ke8 {[%clk 0:00:07.8]} 40. Ng8 {[%clk 0:00:12.2]} 40...
Ra3 {[%clk 0:00:05.7]} 41. Bc5 {[%clk 0:00:09.7]} 1-0

[Event "Late-Titled-Tuesday-Blitz-February-06-2024"]
[Site "Chess.com"]
[Date "2024.02.06"]
[Round "4"]
[White "NovakRatko"]
[Black "BelaKis"]
[Result "1-0"]
[WhiteElo "2395"]
[BlackElo "2229"]
[TimeControl "180+1"]
[EndTime "14:39:13 PST"]
[Termination "NovakRatko won on time"]

1. d4 {[%clk 0:02:58.7]} 1... Nf6 {[%clk 0:02:59.5]} 2. c4 {[%clk 0:02:58.2]}
2... g6 {[%clk 0:02:59.5]} 3. Nc3 {[%clk 0:02:58.4]} 3... Bg7 {[%clk 0:03:00.1]}
4. e4 {[%clk 0:02:59]} 4... d6 {[%clk 0:03:00.6]} 5. f3 {[%clk 0:02:59.7]} 5...
O-O {[%clk 0:03:01]} 6. Be3 {[%clk 0:03:00.4]} 6... a6 {[%clk 0:03:01.6]} 7. Qd2
{[%clk 0:02:59.9]} 7... Nbd7 {[%clk 0:03:02.1]} 8. Nge2 {[%clk 0:02:58.8]} 8...
c5 {[%clk 0:03:02.1]} 9. g4 {[%clk 0:02:57.5]} 9... Qa5 {[%clk 0:02:54.8]} 10.
d5 {[%clk 0:02:55.7]} 10... Ne5 {[%clk 0:02:53.7]} 11. Ng1 {[%clk 0:02:53.9]}
11... b5 {[%clk 0:02:48]} 12. cxb5 {[%clk 0:02:51.4]} 12... axb5 {[%clk
0:02:48.4]} 13. Bxb5 {[%clk 0:02:49.2]} 13... Ba6 {[%clk 0:02:47.9]} 14. Bxa6
{[%clk 0:02:49.4]} 14... Qxa6 {[%clk 0:02:48.3]} 15. Qe2 {[%clk 0:02:41.3]}
15... Nd3+ {[%clk 0:02:28.5]} 16. Kd1 {[%clk 0:02:23.2]} 16... Rfb8 {[%clk
0:02:26.4]} 17. Bc1 {[%clk 0:01:57.1]} 17... Nd7 {[%clk 0:02:15.5]} 18. f4
{[%clk 0:01:45.7]} 18... c4 {[%clk 0:01:30.9]} 19. Qc2 {[%clk 0:01:42]} 19...
N7c5 {[%clk 0:01:21.2]} 20. Nge2 {[%clk 0:01:41.9]} 20... Nf2+ {[%clk
0:01:20.8]} 21. Ke1 {[%clk 0:01:41.3]} 21... Nxh1 {[%clk 0:01:21]} 22. Kf1
{[%clk 0:01:40.9]} 22... Na4 {[%clk 0:01:09.6]} 23. Kg2 {[%clk 0:01:33.9]} 23...
Nxc3 {[%clk 0:01:09.1]} 24. Nxc3 {[%clk 0:01:33.6]} 24... Bxc3 {[%clk
0:00:50.2]} 25. bxc3 {[%clk 0:01:28.8]} 25... Qb6 {[%clk 0:00:50.2]} 26. Kxh1
{[%clk 0:01:27.2]} 26... Ra5 {[%clk 0:00:40.1]} 27. Kg2 {[%clk 0:01:25.9]} 27...
Rba8 {[%clk 0:00:40.2]} 28. Kf3 {[%clk 0:01:25.3]} 28... Qa6 {[%clk 0:00:40.5]}
29. a3 {[%clk 0:01:23.7]} 29... Rb5 {[%clk 0:00:41]} 30. Rb1 {[%clk 0:01:22.3]}
30... Rab8 {[%clk 0:00:39.8]} 31. Rb4 {[%clk 0:01:22.4]} 31... Rxb4 {[%clk
0:00:38.8]} 32. cxb4 {[%clk 0:01:22.6]} 32... Rc8 {[%clk 0:00:38.2]} 33. Qc3
{[%clk 0:01:18]} 33... Qa4 {[%clk 0:00:38]} 34. Bb2 {[%clk 0:01:18]} 34... f6
{[%clk 0:00:37.9]} 35. g5 {[%clk 0:01:16.4]} 35... Qd1+ {[%clk 0:00:36.2]} 36.
Ke3 {[%clk 0:01:13.6]} 36... Qg1+ {[%clk 0:00:33.7]} 37. Kf3 {[%clk 0:01:12.9]}
37... Qf1+ {[%clk 0:00:31.3]} 38. Ke3 {[%clk 0:01:11.6]} 38... Qg1+ {[%clk
0:00:27.5]} 39. Kf3 {[%clk 0:01:11.6]} 39... Qxh2 {[%clk 0:00:22.5]} 40. gxf6
{[%clk 0:01:11.2]} 40... Qh3+ {[%clk 0:00:22.6]} 41. Ke2 {[%clk 0:01:10.9]}
41... Qxc3 {[%clk 0:00:21.8]} 42. Bxc3 {[%clk 0:01:11.3]} 42... exf6 {[%clk
0:00:22.7]} 43. Bxf6 {[%clk 0:01:09.1]} 43... Kf7 {[%clk 0:00:23.2]} 44. Bc3
{[%clk 0:01:07]} 44... h5 {[%clk 0:00:22.5]} 45. a4 {[%clk 0:00:59.2]} 45... g5
{[%clk 0:00:19.2]} 46. fxg5 {[%clk 0:00:56.4]} 46... Kg6 {[%clk 0:00:19.7]} 47.
b5 {[%clk 0:00:54.8]} 47... Kxg5 {[%clk 0:00:19.1]} 48. b6 {[%clk 0:00:54.5]}
48... Kf4 {[%clk 0:00:19.1]} 49. a5 {[%clk 0:00:52.1]} 49... Kxe4 {[%clk
0:00:18.9]} 50. b7 {[%clk 0:00:51.8]} 50... Rg8 {[%clk 0:00:18.9]} 51. a6 {[%clk
0:00:51.6]} 51... h4 {[%clk 0:00:19.4]} 52. a7 {[%clk 0:00:51]} 52... h3 {[%clk
0:00:20]} 53. b8=Q {[%clk 0:00:51.2]} 53... h2 {[%clk 0:00:20.4]} 54. Qxg8
{[%clk 0:00:48.1]} 54... h1=Q {[%clk 0:00:18.7]} 55. Qg4+ {[%clk 0:00:48.2]}
55... Kxd5 {[%clk 0:00:05.9]} 56. a8=Q+ {[%clk 0:00:47.5]} 1-0

[Event "Late-Titled-Tuesday-Blitz-February-06-2024"]
[Site "Chess.com"]
[Date "2024.02.06"]
[Round "4"]
[White "igorkovalenko"]
[Black "Kiborg95"]
[Result "1-0"]
[WhiteElo "3004"]
[BlackElo "2838"]
[TimeControl "180+1"]
[EndTime "14:39:19 PST"]
[Termination "igorkovalenko won by resignation"]

1. c4 {[%clk 0:03:00.9]} 1... e5 {[%clk 0:03:00.2]} 2. Nc3 {[%clk 0:03:01]} 2...
d6 {[%clk 0:02:58.9]} 3. g3 {[%clk 0:03:00.6]} 3... Be7 {[%clk 0:02:56.1]} 4. d4
{[%clk 0:02:39.8]} 4... exd4 {[%clk 0:02:45.4]} 5. Qxd4 {[%clk 0:02:40.7]} 5...
Nc6 {[%clk 0:02:44]} 6. Qd2 {[%clk 0:02:31.6]} 6... Nf6 {[%clk 0:02:43.3]} 7.
Bg2 {[%clk 0:02:32.2]} 7... a5 {[%clk 0:02:41.7]} 8. Nh3 {[%clk 0:02:27.8]} 8...
a4 {[%clk 0:02:35.1]} 9. O-O {[%clk 0:02:15.4]} 9... Be6 {[%clk 0:02:30.8]} 10.
Nd5 {[%clk 0:02:14]} 10... O-O {[%clk 0:02:16.3]} 11. Nhf4 {[%clk 0:02:08.3]}
11... Ne5 {[%clk 0:02:07.1]} 12. Qc3 {[%clk 0:01:55.4]} 12... Bd7 {[%clk
0:01:56]} 13. Be3 {[%clk 0:01:44.7]} 13... Nc6 {[%clk 0:01:29.1]} 14. Rac1
{[%clk 0:01:41.1]} 14... Ng4 {[%clk 0:01:26.9]} 15. Nxe7+ {[%clk 0:01:40]} 15...
Qxe7 {[%clk 0:01:27.8]} 16. Nd5 {[%clk 0:01:39.2]} 16... Qd8 {[%clk 0:01:26.6]}
17. Bf4 {[%clk 0:01:37.7]} 17... Re8 {[%clk 0:01:26]} 18. Rfe1 {[%clk
0:01:37.6]} 18... b6 {[%clk 0:01:14.7]} 19. h3 {[%clk 0:01:36.7]} 19... Nge5
{[%clk 0:01:13.7]} 20. Kh2 {[%clk 0:01:22.8]} 20... Rc8 {[%clk 0:00:36.6]} 21.
Bd2 {[%clk 0:01:21.5]} 21... Ng6 {[%clk 0:00:33.6]} 22. f4 {[%clk 0:01:13.2]}
22... Nce7 {[%clk 0:00:34]} 23. e4 {[%clk 0:01:10.8]} 23... b5 {[%clk
0:00:26.2]} 24. Ne3 {[%clk 0:01:04.8]} 24... bxc4 {[%clk 0:00:21]} 25. Nxc4
{[%clk 0:01:02.4]} 25... Bb5 {[%clk 0:00:20.1]} 26. Qb4 {[%clk 0:00:53.3]} 26...
Rb8 {[%clk 0:00:19.2]} 27. Qc3 {[%clk 0:00:45.9]} 27... Bxc4 {[%clk 0:00:19.1]}
28. Qxc4 {[%clk 0:00:46.4]} 28... Rxb2 {[%clk 0:00:19.7]} 29. Bc3 {[%clk
0:00:47]} 29... Rb7 {[%clk 0:00:15.8]} 30. Qxa4 {[%clk 0:00:45]} 30... Qa8
{[%clk 0:00:12.2]} 31. Qd4 {[%clk 0:00:42.3]} 31... f6 {[%clk 0:00:10.5]} 32. a4
{[%clk 0:00:38.1]} 32... Ra7 {[%clk 0:00:09.1]} 33. a5 {[%clk 0:00:37.9]} 33...
Qb8 {[%clk 0:00:07.5]} 34. Rb1 {[%clk 0:00:37.5]} 34... Rb7 {[%clk 0:00:06.8]}
35. Rxb7 {[%clk 0:00:35.3]} 35... Qxb7 {[%clk 0:00:07.7]} 36. Qc4+ {[%clk
0:00:33.1]} 36... Kf8 {[%clk 0:00:07]} 37. e5 {[%clk 0:00:33.4]} 37... d5 {[%clk
0:00:06.8]} 38. exf6 {[%clk 0:00:33.7]} 38... gxf6 {[%clk 0:00:07]} 39. Bxf6
{[%clk 0:00:30.2]} 39... c6 {[%clk 0:00:03.6]} 40. Qc5 {[%clk 0:00:28.3]} 40...
Qa6 {[%clk 0:00:03.5]} 41. f5 {[%clk 0:00:25.7]} 41... Kf7 {[%clk 0:00:04.2]}
42. fxg6+ {[%clk 0:00:24.7]} 42... Kxf6 {[%clk 0:00:04.8]} 43. gxh7 {[%clk
0:00:25.2]} 43... Qc8 {[%clk 0:00:05.3]} 44. Qd6+ {[%clk 0:00:24]} 44... Kf7
{[%clk 0:00:05]} 45. Qh6 {[%clk 0:00:18.8]} 45... Ng6 {[%clk 0:00:05.2]} 46.
Rf1+ {[%clk 0:00:18.4]} 1-0

[Event "Late-Titled-Tuesday-Blitz-February-06-2024"]
[Site "Chess.com"]
[Date "2024.02.06"]
[Round "4"]
[White "ccccvhhhj"]
[Black "BozeKat"]
[Result "1-0"]
[WhiteElo "2455"]
[BlackElo "2007"]
[TimeControl "180+1"]
[EndTime "14:39:20 PST"]
[Termination "ccccvhhhj won on time"]

1. e4 {[%clk 0:02:19.5]} 1... c5 {[%clk 0:02:59]} 2. Nf3 {[%clk 0:02:18.2]} 2...
a6 {[%clk 0:02:59.3]} 3. b4 {[%clk 0:02:18.3]} 3... cxb4 {[%clk 0:02:51.9]} 4.
a3 {[%clk 0:02:18.8]} 4... d5 {[%clk 0:02:44.9]} 5. e5 {[%clk 0:02:18.8]} 5...
e6 {[%clk 0:02:42.4]} 6. axb4 {[%clk 0:02:18.7]} 6... Bxb4 {[%clk 0:02:41.9]} 7.
c3 {[%clk 0:02:19.6]} 7... Be7 {[%clk 0:02:37.9]} 8. d4 {[%clk 0:02:20.5]} 8...
Nc6 {[%clk 0:02:35.8]} 9. Bd3 {[%clk 0:02:21.1]} 9... Bd7 {[%clk 0:02:27.8]} 10.
O-O {[%clk 0:02:21.3]} 10... b5 {[%clk 0:02:24.5]} 11. Ne1 {[%clk 0:02:19.9]}
11... Na5 {[%clk 0:02:22]} 12. Qg4 {[%clk 0:02:19.6]} 12... g6 {[%clk
0:02:18.1]} 13. Ba3 {[%clk 0:02:17]} 13... Nc4 {[%clk 0:02:14.7]} 14. Bxe7
{[%clk 0:02:15.9]} 14... Qxe7 {[%clk 0:02:15.5]} 15. Qf4 {[%clk 0:02:05.3]}
15... h6 {[%clk 0:02:06.4]} 16. Nd2 {[%clk 0:02:04.8]} 16... Qg5 {[%clk
0:02:05.6]} 17. Qxg5 {[%clk 0:02:01.9]} 17... hxg5 {[%clk 0:02:06.5]} 18. Nb3
{[%clk 0:01:59.8]} 18... Ne7 {[%clk 0:02:01.7]} 19. Nc5 {[%clk 0:01:59.5]} 19...
Nd2 {[%clk 0:02:01.5]} 20. Nf3 {[%clk 0:01:56]} 20... Nxf1 {[%clk 0:02:00.7]}
21. Bxf1 {[%clk 0:01:56.5]} 21... Bc8 {[%clk 0:01:57.4]} 22. Nxg5 {[%clk
0:01:55.1]} 22... Nc6 {[%clk 0:01:46.6]} 23. f4 {[%clk 0:01:44.9]} 23... Ke7
{[%clk 0:01:43.5]} 24. h3 {[%clk 0:01:42.6]} 24... b4 {[%clk 0:01:32.6]} 25.
cxb4 {[%clk 0:01:39.3]} 25... Nxd4 {[%clk 0:01:15]} 26. b5 {[%clk 0:01:39.4]}
26... a5 {[%clk 0:00:55.8]} 27. b6 {[%clk 0:01:39.7]} 27... Rb8 {[%clk
0:00:55.6]} 28. Rxa5 {[%clk 0:01:33.5]} 28... Nc6 {[%clk 0:00:38.5]} 29. Rb5
{[%clk 0:01:22.8]} 29... Bb7 {[%clk 0:00:33.7]} 30. Rb1 {[%clk 0:01:20.8]} 30...
Rhd8 {[%clk 0:00:29.3]} 31. Bb5 {[%clk 0:01:20.3]} 31... Nd4 {[%clk 0:00:27.5]}
32. Bf1 {[%clk 0:01:09.5]} 32... Nc6 {[%clk 0:00:21.1]} 33. g4 {[%clk
0:01:07.1]} 33... d4 {[%clk 0:00:21]} 34. Kh2 {[%clk 0:01:05.9]} 34... Rd5
{[%clk 0:00:11.8]} 35. Rc1 {[%clk 0:01:06.4]} 35... Nb4 {[%clk 0:00:08.2]} 36.
Bg2 {[%clk 0:01:04.5]} 36... d3 {[%clk 0:00:03.8]} 37. Nxb7 {[%clk 0:01:00]}
37... Rxb7 {[%clk 0:00:03.3]} 38. Bxd5 {[%clk 0:01:00.9]} 38... Nxd5 {[%clk
0:00:03.4]} 39. Ne4 {[%clk 0:00:53.6]} 39... Nxf4 {[%clk 0:00:03.4]} 40. Rd1
{[%clk 0:00:49.7]} 40... Rxb6 {[%clk 0:00:03.2]} 41. Kg3 {[%clk 0:00:48.5]}
41... Ne2+ {[%clk 0:00:01.8]} 42. Kf3 {[%clk 0:00:49.1]} 42... Rb3 {[%clk
0:00:02.1]} 43. Ke3 {[%clk 0:00:46.4]} 43... Nc3 {[%clk 0:00:02.2]} 44. Ra1
{[%clk 0:00:43.7]} 44... Nd5+ {[%clk 0:00:02.5]} 45. Kd2 {[%clk 0:00:42.3]}
45... Rb4 {[%clk 0:00:03.1]} 46. Ra7+ {[%clk 0:00:41.2]} 46... Kf8 {[%clk
0:00:01.7]} 47. Ng5 {[%clk 0:00:40.9]} 47... Kg7 {[%clk 0:00:01.9]} 48. Rxf7+
{[%clk 0:00:39.7]} 48... Kg8 {[%clk 0:00:02.4]} 49. Ra7 {[%clk 0:00:31.7]} 49...
Nf4 {[%clk 0:00:02.7]} 50. Ke3 {[%clk 0:00:28.5]} 50... d2 {[%clk 0:00:01.9]}
51. Kxd2 {[%clk 0:00:28.6]} 1-0

[Event "Late-Titled-Tuesday-Blitz-February-06-2024"]
[Site "Chess.com"]
[Date "2024.02.06"]
[Round "4"]
[White "FairChess_on_YouTube"]
[Black "AlexeiShirov"]
[Result "1-0"]
[WhiteElo "3048"]
[BlackElo "2790"]
[TimeControl "180+1"]
[EndTime "14:39:22 PST"]
[Termination "FairChess_on_YouTube won by resignation"]

1. e4 {[%clk 0:03:00.9]} 1... e5 {[%clk 0:02:59.4]} 2. Bc4 {[%clk 0:02:55]} 2...
Nf6 {[%clk 0:02:58.2]} 3. d3 {[%clk 0:02:55.3]} 3... c6 {[%clk 0:02:58.2]} 4.
Nf3 {[%clk 0:02:54.7]} 4... d5 {[%clk 0:02:57.7]} 5. Bb3 {[%clk 0:02:54.5]} 5...
Bb4+ {[%clk 0:02:56.6]} 6. Bd2 {[%clk 0:02:53.2]} 6... Bxd2+ {[%clk 0:02:55.7]}
7. Nbxd2 {[%clk 0:02:50.3]} 7... a5 {[%clk 0:02:51.7]} 8. a3 {[%clk 0:02:48.5]}
8... a4 {[%clk 0:02:50.9]} 9. Ba2 {[%clk 0:02:48.7]} 9... Nbd7 {[%clk
0:02:38.2]} 10. O-O {[%clk 0:02:48.5]} 10... O-O {[%clk 0:02:37.5]} 11. Re1
{[%clk 0:02:49.1]} 11... Re8 {[%clk 0:02:36.8]} 12. Nf1 {[%clk 0:02:44.2]} 12...
dxe4 {[%clk 0:02:19.3]} 13. Ng5 {[%clk 0:02:43.4]} 13... Re7 {[%clk 0:02:15.9]}
14. dxe4 {[%clk 0:02:36.4]} 14... h6 {[%clk 0:02:14.8]} 15. Nxf7 {[%clk
0:02:21.6]} 15... Rxf7 {[%clk 0:02:14.2]} 16. Qd6 {[%clk 0:02:18]} 16... Qf8
{[%clk 0:02:11.1]} 17. Qc7 {[%clk 0:02:12.6]} 17... Kh7 {[%clk 0:02:03.3]} 18.
Bxf7 {[%clk 0:02:01.2]} 18... Qxf7 {[%clk 0:02:03.1]} 19. Rad1 {[%clk
0:01:55.9]} 19... Ne8 {[%clk 0:01:57.5]} 20. Qd8 {[%clk 0:01:53.9]} 20... Nc5
{[%clk 0:01:57.2]} 21. Ng3 {[%clk 0:01:46.1]} 21... Ne6 {[%clk 0:01:55.9]} 22.
Qb6 {[%clk 0:01:38.7]} 22... Nd4 {[%clk 0:01:55.7]} 23. c3 {[%clk 0:01:29.9]}
23... Ne6 {[%clk 0:01:54.3]} 24. f3 {[%clk 0:01:22.2]} 24... Ra6 {[%clk
0:01:42]} 25. Qe3 {[%clk 0:01:20.4]} 25... c5 {[%clk 0:01:39.5]} 26. Rd5 {[%clk
0:01:17.6]} 26... Qc7 {[%clk 0:01:30.5]} 27. Red1 {[%clk 0:01:11.9]} 27... Nf6
{[%clk 0:01:29.1]} 28. R5d2 {[%clk 0:01:11.9]} 28... Nf4 {[%clk 0:01:24.3]} 29.
Ne2 {[%clk 0:01:11.4]} 29... Be6 {[%clk 0:01:20.1]} 30. Nxf4 {[%clk 0:01:07.2]}
30... exf4 {[%clk 0:01:19.6]} 31. Qe2 {[%clk 0:01:07.8]} 31... Nd7 {[%clk
0:01:18.6]} 32. Qb5 {[%clk 0:00:53.8]} 32... Ne5 {[%clk 0:01:03.8]} 33. Rd8
{[%clk 0:00:52.7]} 33... Qc6 {[%clk 0:00:59.5]} 34. Qe2 {[%clk 0:00:43.5]} 34...
Bb3 {[%clk 0:00:58.6]} 35. R1d2 {[%clk 0:00:41.9]} 35... Bc4 {[%clk 0:00:51.4]}
36. Qd1 {[%clk 0:00:39.5]} 36... Bb3 {[%clk 0:00:50.7]} 37. Qe1 {[%clk
0:00:35.7]} 37... c4 {[%clk 0:00:48.9]} 38. R2d5 {[%clk 0:00:31.3]} 38... Nd3
{[%clk 0:00:47.5]} 39. Qh4 {[%clk 0:00:30]} 39... Qb6+ {[%clk 0:00:46.9]} 40.
Rd4 {[%clk 0:00:30.1]} 40... Ra5 {[%clk 0:00:47]} 41. Qe7 {[%clk 0:00:22.9]}
41... Rg5 {[%clk 0:00:41.7]} 42. Qf7 {[%clk 0:00:17.2]} 42... Qc5 {[%clk
0:00:29.7]} 43. Qg8+ {[%clk 0:00:14.7]} 43... Kg6 {[%clk 0:00:29.2]} 44. Qe8+
{[%clk 0:00:14.5]} 44... Kh7 {[%clk 0:00:28.9]} 45. h4 {[%clk 0:00:13.8]} 45...
Rg3 {[%clk 0:00:23.2]} 46. h5 {[%clk 0:00:09.3]} 1-0

[Event "Late-Titled-Tuesday-Blitz-February-06-2024"]
[Site "Chess.com"]
[Date "2024.02.06"]
[Round "4"]
[White "IMSlavin"]
[Black "Ajedrez_con_German"]
[Result "1-0"]
[WhiteElo "2342"]
[BlackElo "2657"]
[TimeControl "180+1"]
[EndTime "14:39:25 PST"]
[Termination "IMSlavin won on time"]

1. e4 {[%clk 0:02:59.3]} 1... e6 {[%clk 0:02:49.4]} 2. Nf3 {[%clk 0:02:58.9]}
2... d5 {[%clk 0:02:43.6]} 3. e5 {[%clk 0:02:58.8]} 3... c5 {[%clk 0:02:42.2]}
4. b4 {[%clk 0:02:59.2]} 4... c4 {[%clk 0:02:42.6]} 5. a3 {[%clk 0:02:58.4]}
5... a5 {[%clk 0:02:42.2]} 6. b5 {[%clk 0:02:58.1]} 6... Nd7 {[%clk 0:02:42.8]}
7. a4 {[%clk 0:02:57.8]} 7... Nb6 {[%clk 0:02:42]} 8. d4 {[%clk 0:02:56.7]} 8...
cxd3 {[%clk 0:02:42.1]} 9. cxd3 {[%clk 0:02:56.7]} 9... Ne7 {[%clk 0:02:39.9]}
10. Ba3 {[%clk 0:02:40.4]} 10... Nf5 {[%clk 0:02:34.1]} 11. Bxf8 {[%clk
0:02:37]} 11... Kxf8 {[%clk 0:02:34.2]} 12. Nbd2 {[%clk 0:02:31.6]} 12... Bd7
{[%clk 0:02:29.2]} 13. Rc1 {[%clk 0:02:28.4]} 13... Qe7 {[%clk 0:02:22.7]} 14.
g4 {[%clk 0:02:08.5]} 14... Nh4 {[%clk 0:02:22.1]} 15. Nxh4 {[%clk 0:02:02.7]}
15... Qxh4 {[%clk 0:02:23]} 16. Rc7 {[%clk 0:01:43.7]} 16... Rb8 {[%clk
0:02:22.1]} 17. Qf3 {[%clk 0:01:35.5]} 17... h5 {[%clk 0:01:55]} 18. Qe3 {[%clk
0:01:26.7]} 18... Qxg4 {[%clk 0:00:56.4]} 19. Qxb6 {[%clk 0:01:25.9]} 19... Qxa4
{[%clk 0:00:46.4]} 20. Qd6+ {[%clk 0:01:05.8]} 20... Kg8 {[%clk 0:00:46.2]} 21.
Rxd7 {[%clk 0:01:01.2]} 21... Rc8 {[%clk 0:00:46.2]} 22. Rd8+ {[%clk 0:00:57.9]}
22... Rxd8 {[%clk 0:00:37.7]} 23. Qxd8+ {[%clk 0:00:56.9]} 23... Kh7 {[%clk
0:00:38.6]} 24. Qg5 {[%clk 0:00:51.6]} 24... Rc8 {[%clk 0:00:36.1]} 25. Qxh5+
{[%clk 0:00:41.5]} 25... Kg8 {[%clk 0:00:36]} 26. Be2 {[%clk 0:00:41.6]} 26...
Qb4 {[%clk 0:00:21.7]} 27. Bd1 {[%clk 0:00:34.9]} 27... Rc3 {[%clk 0:00:18.1]}
28. Qe2 {[%clk 0:00:32.3]} 28... Qxb5 {[%clk 0:00:17.2]} 29. O-O {[%clk
0:00:29.9]} 29... a4 {[%clk 0:00:15.8]} 30. d4 {[%clk 0:00:15.3]} 30... Qxe2
{[%clk 0:00:13.8]} 31. Bxe2 {[%clk 0:00:15.4]} 31... Rc2 {[%clk 0:00:14.5]} 32.
Rd1 {[%clk 0:00:15.7]} 32... a3 {[%clk 0:00:14.7]} 33. Bd3 {[%clk 0:00:15.6]}
33... Rb2 {[%clk 0:00:13.8]} 34. Kf1 {[%clk 0:00:12.5]} 34... a2 {[%clk
0:00:11.9]} 35. Ke1 {[%clk 0:00:13]} 35... b5 {[%clk 0:00:12.3]} 36. Ra1 {[%clk
0:00:12.6]} 36... b4 {[%clk 0:00:12]} 37. Kd1 {[%clk 0:00:13.2]} 37... b3 {[%clk
0:00:11.1]} 38. Kc1 {[%clk 0:00:13.6]} 38... Rxd2 {[%clk 0:00:06.3]} 39. Kxd2
{[%clk 0:00:11.9]} 39... b2 {[%clk 0:00:06.6]} 40. Rxa2 {[%clk 0:00:08.6]} 1-0

[Event "Late-Titled-Tuesday-Blitz-February-06-2024"]
[Site "Chess.com"]
[Date "2024.02.06"]
[Round "4"]
[White "Perecke"]
[Black "cukricek"]
[Result "0-1"]
[WhiteElo "2539"]
[BlackElo "2398"]
[TimeControl "180+1"]
[EndTime "14:39:25 PST"]
[Termination "cukricek won by resignation"]

1. e4 {[%clk 0:02:35.2]} 1... c5 {[%clk 0:03:00.1]} 2. Nf3 {[%clk 0:02:35.6]}
2... g6 {[%clk 0:03:00.4]} 3. c4 {[%clk 0:02:35.4]} 3... Bg7 {[%clk 0:02:58.3]}
4. d4 {[%clk 0:02:35.8]} 4... Nc6 {[%clk 0:02:53.2]} 5. d5 {[%clk 0:02:33.3]}
5... Nd4 {[%clk 0:02:53.3]} 6. Nc3 {[%clk 0:02:32.1]} 6... d6 {[%clk 0:02:51.9]}
7. Be2 {[%clk 0:02:32.2]} 7... Nxf3+ {[%clk 0:02:30.2]} 8. Bxf3 {[%clk
0:02:32.5]} 8... Nf6 {[%clk 0:02:30.8]} 9. O-O {[%clk 0:02:32.8]} 9... O-O
{[%clk 0:02:31.4]} 10. g3 {[%clk 0:02:31.5]} 10... a6 {[%clk 0:02:31.9]} 11. a4
{[%clk 0:02:31.2]} 11... Rb8 {[%clk 0:02:31]} 12. a5 {[%clk 0:02:31.6]} 12... b5
{[%clk 0:02:30.4]} 13. axb6 {[%clk 0:02:31.7]} 13... Rxb6 {[%clk 0:02:30.9]} 14.
Bg2 {[%clk 0:02:30.8]} 14... Rb4 {[%clk 0:02:27.9]} 15. Qd3 {[%clk 0:02:28.9]}
15... Nd7 {[%clk 0:02:20]} 16. f4 {[%clk 0:02:09.8]} 16... Nb6 {[%clk
0:02:18.7]} 17. Na2 {[%clk 0:01:46.1]} 17... Rxc4 {[%clk 0:02:02.4]} 18. Be3
{[%clk 0:01:46]} 18... Ra4 {[%clk 0:01:55.7]} 19. Qc2 {[%clk 0:01:30.8]} 19...
Bd7 {[%clk 0:01:52.6]} 20. Nc3 {[%clk 0:01:27.4]} 20... Rxa1 {[%clk 0:01:47.2]}
21. Rxa1 {[%clk 0:01:28.3]} 21... Nc4 {[%clk 0:01:46.4]} 22. Bf2 {[%clk
0:01:28.7]} 22... Qb6 {[%clk 0:01:42.1]} 23. Na4 {[%clk 0:01:22.8]} 23... Qb4
{[%clk 0:01:09.6]} 24. Ra2 {[%clk 0:01:12.2]} 24... Bd4 {[%clk 0:01:00.4]} 25.
Bf1 {[%clk 0:01:04.4]} 25... Ne3 {[%clk 0:00:46]} 26. Bxe3 {[%clk 0:01:01.6]}
26... Bxe3+ {[%clk 0:00:46.9]} 27. Kg2 {[%clk 0:01:00.7]} 27... Bb5 {[%clk
0:00:45.6]} 28. Nc3 {[%clk 0:00:56.1]} 28... Bxf1+ {[%clk 0:00:42.8]} 29. Kxf1
{[%clk 0:00:57]} 29... Rb8 {[%clk 0:00:42.1]} 30. Nd1 {[%clk 0:00:33.8]} 30...
Bd4 {[%clk 0:00:38.2]} 31. Rxa6 {[%clk 0:00:29.8]} 31... Bxb2 {[%clk 0:00:27.9]}
32. Ra7 {[%clk 0:00:29.7]} 32... Bf6 {[%clk 0:00:26]} 33. g4 {[%clk 0:00:28.9]}
33... h6 {[%clk 0:00:13.4]} 34. Nf2 {[%clk 0:00:23.3]} 34... Qd4 {[%clk
0:00:12.2]} 35. Ra4 {[%clk 0:00:16.3]} 35... Qe3 {[%clk 0:00:07.6]} 36. e5
{[%clk 0:00:12.7]} 36... dxe5 {[%clk 0:00:06.7]} 37. Re4 {[%clk 0:00:13.5]}
37... Qf3 {[%clk 0:00:06]} 38. fxe5 {[%clk 0:00:13]} 38... Bh4 {[%clk
0:00:05.6]} 39. e6 {[%clk 0:00:11.3]} 39... Bxf2 {[%clk 0:00:03.7]} 40. exf7+
{[%clk 0:00:10.5]} 40... Kf8 {[%clk 0:00:03.2]} 41. Qxf2 {[%clk 0:00:02.5]}
41... Qxe4 {[%clk 0:00:03.8]} 0-1